fUSD/lending_fUSD_20250207
["ID","MTS","AMOUNT","RATE_DAILY","PERIOD"]
[352088811,1738943432026,-863.0495,8.836e-05,2]
[352088812,1738943432037,-930.4447,8.851e-05,2]
[352088813,1738943432047,-2848.2983,8.973e-05,2]
[352088814,1738943432056,-243.73250001,8.973e-05,2]
[352088815,1738943432066,-243.73249999,9.937e-05,2]
[352088816,1738943432075,-154.39,0.00010137,2]
[352088817,1738943432084,-1304.31882212,0.00010137,2]
[352088818,1738943432095,-593.97,0.00013491,2]
[352088819,1738943432105,-408.41,0.00015149,2]
[352088820,1738943432115,-1852.42,0.00015155,2]
[352088821,1738943432124,-300.0,0.00015215,2]
[352088822,1738943432133,-1000.0,0.00015216,2]
[352088823,1738943432142,-23900.0,0.00015216,2]
[352088824,1738943432151,-436.07,0.00015322,2]
[352088825,1738943432161,-199.06,0.00015423,2]
[352088826,1738943432170,-150.0,0.00015452,2]
[352088827,1738943432179,-166.66666666,0.00015482,2]
[352088828,1738943432189,-878.68,0.00015741,2]
[352088829,1738943432198,-593.97,0.00015755,2]
[352088830,1738943432207,-438.66,0.00015778,2]
[352088831,1738943432216,-438.66,0.00015778,2]
[352088832,1738943432226,-352.14,0.00015828,2]
[352088833,1738943432235,-224.53,0.00015878,2]
[352088834,1738943432245,-300.0,0.00015878,2]
[352088835,1738943432256,-438.66,0.00015878,2]
[352088837,1738943432266,-1300.0,0.00016,5]
[352088839,1738943432275,-2600.0,0.000161,5]
[352088841,1738943432285,-500.0,0.00016164,2]
[352088842,1738943432294,-500.0,0.00016164,2]
[352088843,1738943432306,-959.0,0.000162,2]
[352088844,1738943432315,-4000.0,0.000162,5]
[352088845,1738943432324,-150.0,0.00016299,2]
[352088846,1738943432336,-63996.60871641,0.000163,2]
[352088847,1738943432346,-5300.0,0.000163,5]
[352088848,1738943432355,-1583.74240086,0.00016338,2]
[352088849,1738943432364,-1583.7424008,0.00016345,2]
[352088850,1738943432374,-1583.7424008,0.00016352,2]
[352088851,1738943432383,-1583.7424008,0.00016359,2]
[352088852,1738943432392,-1583.7424008,0.00016366,2]
[352088854,1738943432401,-1583.7424008,0.00016372,2]
[352088856,1738943432411,-1583.7424008,0.00016379,2]
[352088858,1738943432420,-439.61,0.00016384,2]
[352088860,1738943432430,-892.76,0.00016384,2]
[352088862,1738943432440,-439.61,0.00016384,2]
[352088864,1738943432450,-774.96,0.00016384,2]
[352088866,1738943432459,-439.61,0.00016384,2]
[352088868,1738943432468,-774.96,0.00016384,2]
[352088870,1738943432478,-774.96,0.00016384,2]
[352088872,1738943432487,-437.23,0.00016384,2]
[352088874,1738943432496,-1583.7424008,0.00016386,2]
[352088876,1738943432505,-1583.7424008,0.00016393,2]
[352088878,1738943432515,-727.06723728,0.00016398,2]
[352088880,1738943432524,-727.06723719,0.00016398,2]
[352088883,1738943432534,-727.06723719,0.00016398,2]
[352088887,1738943432543,-727.06723719,0.00016399,2]
[352088890,1738943432553,-727.06723719,0.00016399,2]
[352088892,1738943432563,-727.06723719,0.00016399,2]
[352088894,1738943432572,-727.06723719,0.00016399,2]
[352088896,1738943432581,-727.06723719,0.000164,2]
[352088898,1738943432591,-727.06723719,0.000164,2]
[352088900,1738943432600,-196.77239842,0.000164,2]
[352088902,1738943432609,-1583.7424008,0.000164,2]
[352088904,1738943432619,-3721.44898757,0.000164,5]
[352088906,1738943432631,-466.72840552,0.000164,5]
[352088908,1738943432642,-709.47731516,0.000164,5]
[352088911,1738943432654,-1440.947,0.000164,5]
[352088914,1738943432682,-259.52705549,0.000164,5]
[352088967,1738943438004,-324.45667329,0.00013315,2]
[352088968,1738943438017,-24.54332671,0.00013315,2]
[352088969,1738943438028,-101.87123626,0.000164,5]
[352088970,1738943438037,-417.38427813,0.000164,2]
[352088971,1738943438087,-309.68295906,0.000164,2]
[352088972,1738943438097,-11960.72903328,0.000164,2]
[352088973,1738943438106,-159.55792752,0.000164,2]
[352088974,1738943438118,-570.075,0.000164,2]
[352089127,1738943439863,-202.01298256,0.00016398,2]
[352089129,1738943439872,-1647.82923094,0.000164,2]
[352089131,1738943439885,-500.0,0.00016438,2]
[352089133,1738943439900,-500.0,0.00016438,2]
[352089135,1738943439910,-500.0,0.00016438,2]
[352089137,1738943439919,-500.0,0.00016438,2]
[352089138,1738943439929,-152.71820095,0.00016438,2]
[352089141,1738943439938,-500.0,0.00016438,2]
[352089142,1738943439948,-561.97,0.00016438,2]
[352089144,1738943439958,-500.0,0.00016438,2]
[352089146,1738943439967,-500.0,0.00016438,2]
[352089149,1738943439977,-500.0,0.00016438,2]
[352089151,1738943439987,-500.0,0.00016438,2]
[352089153,1738943439996,-500.0,0.00016438,2]
[352089155,1738943440005,-500.0,0.00016438,2]
[352089157,1738943440015,-500.0,0.00016438,2]
[352089158,1738943440026,-500.0,0.00016438,2]
[352089161,1738943440037,-500.0,0.00016438,2]
[352089162,1738943440046,-500.0,0.00016438,2]
[352089164,1738943440055,-574.78,0.00016438,2]
[352089166,1738943440065,-500.0,0.00016438,2]
[352089168,1738943440074,-500.0,0.00016438,2]
[352089170,1738943440083,-501.4,0.00016438,2]
[352089172,1738943440092,-331.83,0.00016438,2]
[352089174,1738943440102,-500.0,0.00016438,2]
[352089176,1738943440111,-500.0,0.00016438,2]
[352089178,1738943440120,-500.0,0.00016438,2]
[352089180,1738943440129,-500.0,0.00016438,2]
[352089182,1738943440138,-500.0,0.00016438,2]
[352089184,1738943440148,-500.0,0.00016438,2]
[352089186,1738943440157,-515.19,0.00016438,2]
[352089188,1738943440167,-500.0,0.00016438,2]
[352089190,1738943440176,-500.0,0.00016438,2]
[352089192,1738943440185,-500.0,0.00016438,2]
[352089194,1738943440195,-500.0,0.00016438,2]
[352089196,1738943440204,-500.0,0.00016438,2]
[352089198,1738943440213,-500.0,0.00016438,2]
[352089200,1738943440222,-500.0,0.00016438,2]
[352089202,1738943440231,-500.0,0.00016438,2]
[352089204,1738943440240,-500.0,0.00016438,2]
[352089206,1738943440250,-500.0,0.00016438,2]
[352089208,1738943440259,-500.0,0.00016438,2]
[352089210,1738943440275,-500.0,0.00016438,2]
[352089212,1738943440284,-338.2,0.00016438,2]
[352089214,1738943440294,-155.55,0.00016438,2]
[352089216,1738943440304,-500.0,0.00016438,2]
[352089218,1738943440313,-166.27815303,0.00016438,2]
[352089220,1738943440322,-500.0,0.00016438,2]
[352089222,1738943440331,-500.0,0.00016438,2]
[352089224,1738943440341,-500.0,0.00016438,2]
[352089226,1738943440351,-347.43,0.00016438,2]
[352089228,1738943440360,-500.0,0.00016438,2]
[352089230,1738943440369,-500.0,0.00016438,2]
[352089232,1738943440378,-500.0,0.00016438,2]
[352089234,1738943440387,-500.0,0.00016438,2]
[352089236,1738943440396,-500.0,0.00016438,2]
[352089238,1738943440405,-500.0,0.00016438,2]
[352089240,1738943440414,-500.0,0.00016438,2]
[352089242,1738943440423,-265.51670111,0.00016438,2]
[352089244,1738943440435,-500.0,0.00016438,2]
[352089246,1738943440444,-531.77911736,0.00016438,2]
[352089248,1738943440453,-500.0,0.00016438,2]
[352089250,1738943440462,-500.0,0.00016438,2]
[352089252,1738943440471,-500.0,0.00016438,2]
[352089253,1738943440480,-500.0,0.00016438,2]
[352089256,1738943440490,-500.0,0.00016438,2]
[352089257,1738943440499,-501.02653139,0.00016438,2]
[352089260,1738943440509,-500.0,0.00016438,2]
[352089261,1738943440520,-500.0,0.00016438,2]
[352089263,1738943440529,-178.0,0.00016438,2]
[352089265,1738943440539,-500.0,0.00016438,2]
[352089267,1738943440548,-500.0,0.00016438,2]
[352089269,1738943440558,-500.0,0.00016438,2]
[352089271,1738943440567,-500.0,0.00016438,2]
[352089273,1738943440577,-500.0,0.00016438,2]
[352089275,1738943440586,-500.0,0.00016438,2]
[352089277,1738943440595,-500.0,0.00016438,2]
[352089279,1738943440605,-500.0,0.00016438,2]
[352089281,1738943440615,-500.0,0.00016438,2]
[352089284,1738943440624,-500.0,0.00016438,2]
[352089285,1738943440634,-500.0,0.00016438,2]
[352089288,1738943440644,-500.0,0.00016438,2]
[352089290,1738943440654,-500.0,0.00016438,2]
[352089292,1738943440663,-500.0,0.00016438,2]
[352089294,1738943440673,-500.0,0.00016438,2]
[352089296,1738943440682,-500.0,0.00016438,2]
[352089297,1738943440691,-500.26754965,0.00016438,2]
[352089300,1738943440701,-500.0,0.00016438,2]
[352089301,1738943440711,-500.0,0.00016438,2]
[352089303,1738943440720,-500.0,0.00016438,2]
[352089305,1738943440729,-500.0,0.00016438,2]
[352089307,1738943440739,-500.0,0.00016438,2]
[352089309,1738943440748,-500.0,0.00016438,2]
[352089311,1738943440757,-306.48081692,0.00016438,2]
[352089314,1738943440773,-193.51918308,0.00016438,2]
[352089316,1738943440782,-506.53,0.00016438,2]
[352089318,1738943440791,-500.0,0.00016438,2]
[352089320,1738943440800,-500.0,0.00016438,2]
[352089321,1738943440809,-500.0,0.00016438,2]
[352089322,1738943440818,-500.0,0.00016438,2]
[352089323,1738943440828,-500.0,0.00016438,2]
[352089324,1738943440837,-500.0,0.00016438,2]
[352089325,1738943440846,-500.0,0.00016438,2]
[352089326,1738943440855,-17.49097158,0.00016438,2]
[352089327,1738943440866,-482.50902842,0.00016438,2]
[352089328,1738943440876,-500.0,0.00016438,7]
[352089329,1738943440884,-500.0,0.00016438,2]
[352089330,1738943440894,-409.32927894,0.00016438,2]
[352089333,1738943440906,-90.67072106,0.00016438,2]
[352089335,1738943440916,-500.0,0.00016438,2]
[352089337,1738943440925,-500.0,0.00016438,2]
[352089339,1738943440935,-500.0,0.00016438,2]
[352089340,1738943440944,-149.42038224,0.00016438,2]
[352089343,1738943440956,-350.57961776,0.00016438,2]
[352089345,1738943440966,-500.0,0.00016438,2]
[352089347,1738943440975,-348.72272096,0.00016438,2]
[352089349,1738943440987,-151.27727904,0.00016438,2]
[352089351,1738943440995,-283.76484964,0.00016438,2]
[352089354,1738943441018,-216.23515036,0.00016438,2]
[352089356,1738943441030,-500.0,0.00016438,2]
[352089358,1738943441040,-500.0,0.00016438,2]
[352089360,1738943441049,-500.0,0.00016438,2]
[352089362,1738943441059,-500.0,0.00016438,2]
[352089364,1738943441068,-500.0,0.00016438,2]
[352089366,1738943441077,-500.0,0.00016438,2]
[352089368,1738943441087,-500.0,0.00016438,2]
[352089370,1738943441097,-500.0,0.00016438,2]
[352089372,1738943441106,-566.49,0.00016438,2]
[352089374,1738943441116,-500.0,0.00016438,2]
[352089376,1738943441125,-500.0,0.00016438,2]
[352089378,1738943441135,-500.0,0.00016438,2]
[352089380,1738943441144,-500.0,0.00016438,2]
[352089382,1738943441154,-500.0,0.00016438,2]
[352089384,1738943441164,-500.0,0.00016438,2]
[352089386,1738943441173,-500.0,0.00016438,2]
[352089388,1738943441183,-500.0,0.00016438,2]
[352089390,1738943441193,-500.0,0.00016438,2]
[352089392,1738943441202,-500.0,0.00016438,2]
[352089394,1738943441213,-500.51325432,0.00016438,2]
[352089396,1738943441222,-500.0,0.00016438,2]
[352089398,1738943441231,-500.0,0.00016438,2]
[352089400,1738943441241,-500.0,0.00016438,2]
[352089402,1738943441252,-500.0,0.00016438,2]
[352089404,1738943441263,-500.0,0.00016438,2]
[352089406,1738943441273,-500.0,0.00016438,2]
[352089408,1738943441283,-500.0,0.00016438,2]
[352089410,1738943441293,-500.0,0.00016438,2]
[352089412,1738943441303,-500.0,0.00016438,2]
[352089414,1738943441312,-500.0,0.00016438,2]
[352089416,1738943441321,-500.0,0.00016438,2]
[352089418,1738943441332,-500.0,0.00016438,2]
[352089420,1738943441341,-616.02,0.00016438,2]
[352089422,1738943441352,-500.0,0.00016438,2]
[352089424,1738943441361,-287.72211771,0.00016438,2]
[352089426,1738943441370,-500.0,0.00016438,2]
[352089428,1738943441379,-500.0,0.00016438,2]
[352089430,1738943441389,-500.0,0.00016438,2]
[352089432,1738943441398,-500.0,0.00016438,2]
[352089434,1738943441408,-500.0,0.00016438,2]
[352089436,1738943441417,-500.0,0.00016438,2]
[352089438,1738943441427,-558.29,0.00016438,2]
[352089440,1738943441436,-500.0,0.00016438,2]
[352089442,1738943441445,-500.0,0.00016438,2]
[352089444,1738943441455,-500.0,0.00016438,2]
[352089446,1738943441465,-249.11139155,0.00016438,2]
[352089448,1738943441475,-567.83,0.00016438,2]
[352089451,1738943441485,-500.33690449,0.00016438,2]
[352089453,1738943441495,-500.0,0.00016438,2]
[352089455,1738943441507,-500.0,0.00016438,2]
[352089457,1738943441516,-508.44,0.00016438,2]
[352089459,1738943441527,-500.0,0.00016438,2]
[352089461,1738943441536,-500.0,0.00016438,2]
[352089463,1738943441546,-500.0,0.00016438,2]
[352089465,1738943441555,-500.0,0.00016438,2]
[352089467,1738943441564,-500.0,0.00016438,2]
[352089469,1738943441574,-500.0,0.00016438,2]
[352089471,1738943441585,-500.0,0.00016438,2]
[352089473,1738943441594,-500.0,0.00016438,2]
[352089475,1738943441603,-500.0,0.00016438,2]
[352089477,1738943441612,-500.0,0.00016438,2]
[352089479,1738943441622,-500.0,0.00016438,2]
[352089481,1738943441631,-500.0,0.00016438,2]
[352089483,1738943441640,-500.0,0.00016438,2]
[352089485,1738943441650,-500.0,0.00016438,2]
[352089487,1738943441659,-631.54,0.00016438,2]
[352089489,1738943441669,-500.0,0.00016438,2]
[352089491,1738943441678,-500.0,0.00016438,2]
[352089493,1738943441687,-500.0,0.00016438,2]
[352089495,1738943441697,-500.0,0.00016438,2]
[352089497,1738943441707,-500.0,0.00016438,2]
[352089499,1738943441717,-580.6,0.00016438,2]
[352089501,1738943441727,-298.26647507,0.00016438,2]
[352089503,1738943441738,-500.0,0.00016438,2]
[352089505,1738943441756,-500.0,0.00016438,2]
[352089507,1738943441765,-500.0,0.00016438,2]
[352089509,1738943441776,-500.0,0.00016438,2]
[352089511,1738943441785,-500.0,0.00016438,2]
[352089513,1738943441794,-500.0,0.00016438,2]
[352089515,1738943441803,-556.41401008,0.00016438,2]
[352089517,1738943441813,-500.0,0.00016438,2]
[352089519,1738943441824,-232.6,0.00016438,2]
[352089521,1738943441834,-500.0,0.00016438,2]
[352089523,1738943441843,-500.0,0.00016438,2]
[352089525,1738943441853,-500.0,0.00016438,2]
[352089527,1738943441862,-500.0,0.00016438,2]
[352089529,1738943441871,-500.0,0.00016438,2]
[352089531,1738943441881,-500.0,0.00016438,2]
[352089533,1738943441890,-500.0,0.00016438,2]
[352089535,1738943441899,-500.0,0.00016438,2]
[352089537,1738943441908,-497.25,0.00016438,2]
[352089539,1738943441917,-500.0,0.00016438,2]
[352089541,1738943441927,-500.0,0.00016438,2]
[352089543,1738943441936,-500.0,0.00016438,2]
[352089545,1738943441945,-500.0,0.00016438,2]
[352089547,1738943441955,-500.0,0.00016438,2]
[352089549,1738943441963,-500.0,0.00016438,2]
[352089551,1738943441972,-500.0,0.00016438,2]
[352089553,1738943441982,-500.0,0.00016438,2]
[352089554,1738943441992,-500.0,0.00016438,2]
[352089557,1738943442002,-500.0,0.00016438,2]
[352089558,1738943442011,-500.0,0.00016438,2]
[352089560,1738943442020,-500.0,0.00016438,2]
[352089562,1738943442031,-500.0,0.00016438,2]
[352089564,1738943442040,-500.0,0.00016438,2]
[352089566,1738943442049,-1502.830926,0.00016438,2]
[352089569,1738943442059,-500.0,0.00016438,2]
[352089570,1738943442068,-500.0,0.00016438,2]
[352089572,1738943442078,-500.0,0.00016438,2]
[352089574,1738943442087,-500.0,0.00016438,2]
[352089577,1738943442097,-500.0,0.00016438,2]
[352089579,1738943442107,-500.0,0.00016438,2]
[352089581,1738943442116,-500.0,0.00016438,2]
[352089582,1738943442125,-1423.152889,0.00016438,2]
[352089584,1738943442134,-500.0,0.00016438,2]
[352089586,1738943442144,-500.0,0.00016438,2]
[352089588,1738943442157,-392.2,0.00016438,2]
[352089590,1738943442170,-500.0,0.00016438,2]
[352089592,1738943442179,-500.0,0.00016438,2]
[352089594,1738943442189,-500.0,0.00016438,2]
[352089596,1738943442198,-500.0,0.00016438,2]
[352089598,1738943442207,-500.0,0.00016438,2]
[352089601,1738943442217,-500.0,0.00016438,2]
[352089603,1738943442227,-500.0,0.00016438,2]
[352089605,1738943442236,-500.0,0.00016438,2]
[352089607,1738943442246,-500.0,0.00016438,2]
[352089608,1738943442255,-164.441875,0.00016438,2]
[352089610,1738943442266,-500.0,0.00016438,2]
[352089612,1738943442277,-500.0,0.00016438,2]
[352089614,1738943442286,-500.0,0.00016438,2]
[352089616,1738943442296,-500.0,0.00016438,2]
[352089618,1738943442306,-500.0,0.00016438,2]
[352089620,1738943442318,-500.0,0.00016438,2]
[352089623,1738943442328,-500.0,0.00016438,2]
[352089625,1738943442348,-500.0,0.00016438,2]
[352089626,1738943442359,-721.56,0.00016438,2]
[352089629,1738943442368,-500.0,0.00016438,2]
[352089651,1738943442515,-500.0,0.00016438,2]
[352089653,1738943442526,-500.0,0.00016438,2]
[352089655,1738943442536,-524.7,0.00016438,2]
[352089659,1738943442547,-500.0,0.00016438,2]
[352089662,1738943442557,-500.0,0.00016438,2]
[352089664,1738943442567,-500.0,0.00016438,2]
[352089667,1738943442577,-500.0,0.00016438,2]
[352089670,1738943442587,-518.56,0.00016438,2]
[352089673,1738943442597,-500.0,0.00016438,2]
[352089676,1738943442607,-151.22,0.00016438,2]
[352089678,1738943442622,-500.0,0.00016438,2]
[352089682,1738943442633,-500.0,0.00016438,2]
[352089685,1738943442643,-500.95079342,0.00016438,2]
[352089687,1738943442653,-500.0,0.00016438,2]
[352089690,1738943442663,-500.0,0.00016438,2]
[352089694,1738943442674,-500.0,0.00016438,2]
[352089697,1738943442683,-500.0,0.00016438,2]
[352089700,1738943442693,-500.0,0.00016438,2]
[352089703,1738943442702,-500.0,0.00016438,2]
[352089706,1738943442711,-500.0,0.00016438,2]
[352089709,1738943442720,-500.0,0.00016438,2]
[352089712,1738943442729,-500.0,0.00016438,2]
[352089715,1738943442739,-500.0,0.00016438,2]
[352089718,1738943442748,-500.0,0.00016438,2]
[352089720,1738943442757,-500.0,0.00016438,2]
[352089722,1738943442767,-500.0,0.00016438,2]
[352089724,1738943442777,-500.0,0.00016438,2]
[352089726,1738943442786,-500.0,0.00016438,2]
[352089728,1738943442796,-500.0,0.00016438,2]
[352089730,1738943442805,-130.30447332,0.00016438,2]
[352089733,1738943442820,-369.69552668,0.00016438,2]
[352089735,1738943442830,-500.0,0.00016438,2]
[352089737,1738943442839,-500.0,0.00016438,2]
[352089739,1738943442849,-500.0,0.00016438,2]
[352089741,1738943442858,-500.0,0.00016438,2]
[352089743,1738943442868,-500.0,0.00016438,2]
[352089745,1738943442877,-500.0,0.00016438,2]
[352089747,1738943442887,-500.0,0.00016438,2]
[352089749,1738943442896,-501.97280486,0.00016438,2]
[352089751,1738943442907,-500.0,0.00016438,2]
[352089753,1738943442916,-500.0,0.00016438,2]
[352089755,1738943442925,-1148.99,0.00016438,2]
[352089757,1738943442935,-732.71,0.00016438,2]
[352089759,1738943442945,-870.11,0.00016438,2]
[352089761,1738943442954,-500.0,0.00016438,2]
[352089763,1738943442964,-500.0,0.00016438,2]
[352089765,1738943442974,-500.0,0.00016438,2]
[352089767,1738943442983,-500.0,0.00016438,2]
[352089769,1738943442992,-772.43,0.00016438,2]
[352089771,1738943443001,-500.0,0.00016438,2]
[352089773,1738943443010,-500.0,0.00016438,2]
[352089775,1738943443019,-500.0,0.00016438,2]
[352089777,1738943443030,-648.78,0.00016438,2]
[352089779,1738943443039,-500.0,0.00016438,2]
[352089780,1738943443048,-500.0,0.00016438,2]
[352089783,1738943443058,-662.61,0.00016438,2]
[352089785,1738943443067,-632.28,0.00016438,2]
[352089787,1738943443077,-500.0,0.00016438,2]
[352089789,1738943443086,-500.0,0.00016438,2]
[352089791,1738943443096,-500.0,0.00016438,2]
[352089792,1738943443106,-503.8112456,0.00016438,2]
[352089795,1738943443115,-1041.26,0.00016438,2]
[352089797,1738943443124,-500.0,0.00016438,2]
[352089798,1738943443133,-500.0,0.00016438,2]
[352089800,1738943443142,-500.0,0.00016438,2]
[352089802,1738943443151,-500.0,0.00016438,2]
[352089804,1738943443161,-620.55,0.00016438,2]
[352089806,1738943443170,-500.0,0.00016438,2]
[352089808,1738943443179,-508.16,0.00016438,2]
[352089810,1738943443188,-500.0,0.00016438,2]
[352089812,1738943443197,-1645.75,0.00016438,2]
[352089814,1738943443207,-609.54,0.00016438,2]
[352089816,1738943443216,-500.0,0.00016438,2]
[352089818,1738943443225,-576.26,0.00016438,2]
[352089820,1738943443235,-500.0,0.00016438,2]
[352089822,1738943443244,-500.0,0.00016438,2]
[352089824,1738943443259,-500.0,0.00016438,2]
[352089826,1738943443269,-500.0,0.00016438,2]
[352089828,1738943443280,-500.0,0.00016438,2]
[352089830,1738943443290,-500.0,0.00016438,2]
[352089832,1738943443301,-500.0,0.00016438,2]
[352089835,1738943443310,-500.0,0.00016438,2]
[352089836,1738943443320,-500.0,0.00016438,2]
[352089838,1738943443329,-500.0,0.00016438,2]
[352089840,1738943443338,-500.0,0.00016438,2]
[352089842,1738943443349,-500.0,0.00016438,2]
[352089844,1738943443358,-1897.92,0.00016438,2]
[352089846,1738943443367,-500.0,0.00016438,2]
[352089849,1738943443379,-500.0,0.00016438,2]
[352089850,1738943443389,-500.0,0.00016438,2]
[352089853,1738943443399,-500.0,0.00016438,2]
[352089855,1738943443411,-643.13,0.00016438,2]
[352089857,1738943443420,-500.0,0.00016438,2]
[352089859,1738943443430,-638.79,0.00016438,2]
[352089860,1738943443440,-500.0,0.00016438,2]
[352089862,1738943443449,-681.75,0.00016438,2]
[352089864,1738943443459,-500.0,0.00016438,2]
[352089867,1738943443469,-500.0,0.00016438,2]
[352089868,1738943443478,-500.0,0.00016438,2]
[352089870,1738943443487,-500.0,0.00016438,2]
[352089872,1738943443496,-500.0,0.00016438,2]
[352089874,1738943443505,-500.0,0.00016438,2]
[352089876,1738943443514,-500.0,0.00016438,2]
[352089878,1738943443525,-1013.37,0.00016438,2]
[352089880,1738943443534,-500.0,0.00016438,2]
[352089882,1738943443544,-500.0,0.00016438,2]
[352089884,1738943443553,-500.0,0.00016438,2]
[352089886,1738943443562,-500.0,0.00016438,2]
[352089888,1738943443572,-502.49778258,0.00016438,2]
[352089890,1738943443581,-500.0,0.00016438,2]
[352089892,1738943443591,-500.0,0.00016438,2]
[352089894,1738943443600,-411.44,0.00016438,2]
[352089896,1738943443609,-500.0,0.00016438,2]
[352089898,1738943443618,-1043.5,0.00016438,2]
[352089900,1738943443627,-500.0,0.00016438,2]
[352089902,1738943443637,-500.0,0.00016438,2]
[352089904,1738943443646,-500.0,0.00016438,2]
[352089906,1738943443656,-500.0,0.00016438,2]
[352089908,1738943443665,-500.0,0.00016438,2]
[352089910,1738943443675,-321.03,0.00016438,2]
[352089912,1738943443684,-500.0,0.00016438,2]
[352089914,1738943443693,-592.64,0.00016438,2]
[352089916,1738943443702,-500.0,0.00016438,2]
[352089918,1738943443715,-500.0,0.00016438,2]
[352089920,1738943443725,-500.0,0.00016438,2]
[352089922,1738943443734,-500.0,0.00016438,2]
[352089924,1738943443743,-500.0,0.00016438,2]
[352089926,1738943443752,-500.0,0.00016438,2]
[352089928,1738943443762,-500.0,0.00016438,2]
[352089930,1738943443771,-500.0,0.00016438,2]
[352089932,1738943443782,-500.0,0.00016438,2]
[352089934,1738943443792,-500.0,0.00016438,2]
[352089936,1738943443801,-627.87,0.00016438,2]
[352089938,1738943443811,-500.0,0.00016438,2]
[352089940,1738943443819,-500.0,0.00016438,2]
[352089942,1738943443830,-500.0,0.00016438,2]
[352089944,1738943443839,-500.0,0.00016438,2]
[352089946,1738943443849,-500.0,0.00016438,2]
[352089948,1738943443859,-766.73,0.00016438,2]
[352089950,1738943443868,-500.0,0.00016438,2]
[352089952,1738943443880,-512.20393647,0.00016438,2]
[352089955,1738943443893,-500.0,0.00016438,2]
[352089957,1738943443906,-500.0,0.00016438,2]
[352089959,1738943443918,-500.0,0.00016438,2]
[352089961,1738943443929,-413.49574817,0.00016438,2]
[352089964,1738943443941,-500.0,0.00016438,2]
[352089966,1738943443954,-2755.68,0.00016438,60]
[352089969,1738943443966,-500.0,0.00016438,2]
[352089971,1738943443979,-500.0,0.00016438,2]
[352089973,1738943443993,-373.63,0.00016438,2]
[352089976,1738943444006,-179.10839651,0.0001644,2]
[352089977,1738943444018,-179.10839651,0.0001644,2]
[352089978,1738943444030,-179.10839651,0.0001644,2]
[352089979,1738943444041,-179.10839651,0.0001644,2]
[352089980,1738943444055,-179.10839651,0.0001644,2]
[352089981,1738943444067,-179.10839651,0.0001644,2]
[352089982,1738943444080,-179.10839651,0.0001644,2]
[352089984,1738943444093,-179.10839651,0.0001644,2]
[352089986,1738943444106,-179.10839651,0.0001644,2]
[352089989,1738943444118,-179.10839651,0.0001644,2]
[352089991,1738943444131,-179.10839651,0.0001644,2]
[352089993,1738943444145,-179.10839651,0.0001644,2]
[352089996,1738943444157,-179.10839651,0.0001644,2]
[352089998,1738943444170,-179.10839651,0.0001644,2]
[352090000,1738943444183,-179.10839651,0.0001644,2]
[352090003,1738943444194,-179.10839651,0.0001644,2]
[352090005,1738943444206,-179.10839651,0.0001644,2]
[352090007,1738943444219,-179.10839651,0.0001644,2]
[352090010,1738943444232,-179.10839651,0.0001644,2]